bitfinex/quotes_BTCUSD_20241119
["timestamp","ask_amount","ask_price","bid_price","bid_amount"]
[1732044827066,0.107093,93377.0,93371.0,0.0004]
[1732044827278,0.214169,93384.0,93371.0,0.0004]
[1732044827493,0.10906255,93387.0,93371.0,0.0004]
[1732044827770,0.107085,93384.0,93371.0,0.0004]
[1732044827975,0.10906255,93387.0,93371.0,0.0004]
[1732044828191,0.44880347,93387.0,93371.0,0.0004]
[1732044828408,0.44880347,93387.0,93372.0,0.10906255]
[1732044828624,0.44880347,93387.0,93386.0,0.010708]
[1732044828850,0.0437622,93388.0,93387.0,0.010708]
[1732044829145,0.048,93418.0,93410.0,0.010705]
[1732044829351,0.44880347,93436.0,93412.0,0.010705]
[1732044829587,0.25,93440.0,93403.0,0.002]
[1732044829588,0.25,93440.0,93439.0,0.010702]
[1732044830059,0.44880347,93460.0,93439.0,0.010702]
[1732044830060,0.107002,93456.0,93443.0,0.010701]
[1732044830288,0.01,93465.0,93415.0,0.0886]
[1732044830289,0.44880347,93458.0,93449.0,0.0107]
[1732044830498,0.107,93458.0,93446.0,0.010701]
[1732044830714,0.04420399,93460.0,93429.0,0.010703]
[1732044830951,0.04420399,93460.0,93437.0,0.010702]
[1732044831189,0.04420399,93460.0,93457.0,0.0107]
[1732044831418,0.04420399,93460.0,93459.0,0.010699]
[1732044831902,0.40500746,93477.0,93476.0,0.010697]
[1732044832135,0.40500746,93477.0,93475.0,0.010697]
[1732044832136,0.40500746,93485.0,93475.0,0.010697]
[1732044832361,0.40500746,93485.0,93467.0,0.010698]
[1732044832362,0.04348296,93477.0,93473.0,0.010698]
[1732044832610,0.10906255,93484.0,93475.0,0.010697]
[1732044832821,0.10906255,93484.0,93479.0,0.010697]
[1732044833047,0.10906255,93484.0,93476.0,0.010697]
[1732044833517,0.10906255,93484.0,93477.0,0.010697]
[1732044833743,0.40500746,93485.0,93455.0,0.10906255]
[1732044833963,0.04381307,93484.0,93479.0,0.010697]
[1732044834170,0.0017116,93494.0,93456.0,0.10906255]
[1732044834171,0.04256648,93485.0,93481.0,0.010697]
[1732044834395,0.1086784,93490.0,93481.0,0.010697]
[1732044834623,0.1086784,93490.0,93478.0,0.010697]
[1732044834624,0.10906255,93489.0,93475.0,0.010698]
[1732044834833,0.10697,93484.0,93475.0,0.010698]
[1732044835048,0.106968,93486.0,93476.0,0.010697]
[1732044835267,0.1,93487.0,93479.0,0.010697]
[1732044835553,0.1,93487.0,93480.0,0.010697]
[1732044835761,0.1,93487.0,93456.0,0.10906255]
[1732044835999,0.106969,93485.0,93477.0,0.010697]
[1732044836218,0.40500746,93486.0,93471.0,0.010698]
[1732044836473,0.40500746,93486.0,93457.0,0.0107]
[1732044836694,0.40500746,93486.0,93478.0,0.010697]
[1732044836920,0.40500746,93486.0,93479.0,0.010697]
[1732044837587,0.40500746,93486.0,93477.0,0.010697]
[1732044837818,0.10697,93484.0,93445.0,0.04245303]
[1732044838066,0.1,93481.0,93472.0,0.010698]
[1732044838292,0.1,93479.0,93452.0,0.0107]
[1732044838520,0.51407001,93478.0,93452.0,0.0107]
[1732044838981,0.51407001,93478.0,93450.0,0.0107]
[1732044839210,0.213956,93477.0,93446.0,0.10906255]
[1732044839468,0.106979,93476.0,93449.0,0.0107]
[1732044839693,0.1483,93474.0,93437.0,0.010702]
[1732044839928,0.1483,93474.0,93421.0,0.01]
[1732044839929,0.1,93472.0,93438.0,0.10906255]
[1732044840144,0.1,93470.0,93439.0,0.010702]
[1732044840385,0.1,93470.0,93430.0,0.087003]
[1732044840386,0.1,93470.0,93440.0,0.10906255]
[1732044840620,0.40500746,93475.0,93440.0,0.10906255]
[1732044840847,0.40500746,93475.0,93456.0,0.0107]
[1732044841076,0.44738943,93475.0,93456.0,0.10906255]
[1732044841301,0.44738943,93475.0,93441.0,0.002]
[1732044841548,0.04473894,93474.0,93442.0,0.10906255]
[1732044841771,0.1,93473.0,93440.0,0.010702]
[1732044842024,0.1,93471.0,93442.0,0.010701]
[1732044842252,0.213974,93469.0,93444.0,0.010701]
[1732044842489,0.10906255,93469.0,93440.0,0.10906255]
[1732044842715,0.106996,93461.0,93440.0,0.10906255]
[1732044842944,0.10906255,93468.0,93427.0,0.002]
[1732044843164,0.10906255,93468.0,93388.0,0.010707]
[1732044843165,0.1,93459.0,93409.0,0.0478]
[1732044843460,0.0498,93462.0,93425.0,0.010703]
[1732044843461,0.1,93456.0,93425.0,0.010703]
[1732044843685,0.1,93456.0,93418.0,0.0828]
[1732044843686,0.214009,93454.0,93418.0,0.0828]
[1732044843897,0.10906255,93453.0,93420.0,0.010704]
[1732044844142,0.10906255,93453.0,93421.0,0.10906255]
[1732044844375,0.1,93456.0,93421.0,0.10906255]
[1732044844586,0.314004,93456.0,93432.0,0.010702]
[1732044844792,0.61901346,93455.0,93432.0,0.010702]
[1732044845032,0.107014,93446.0,93426.0,0.010703]
[1732044845246,0.1,93451.0,93418.0,0.0828]
[1732044845507,0.10906255,93454.0,93419.0,0.10906255]
[1732044845508,0.10906255,93450.0,93419.0,0.10906255]
[1732044845982,0.1,93449.0,93418.0,0.0828]
[1732044846194,0.1,93449.0,93407.0,0.1]
[1732044846195,0.107034,93428.0,93394.0,0.04500331]
[1732044846399,0.107042,93421.0,93406.0,0.010705]
[1732044846615,0.214078,93424.0,93406.0,0.010705]
[1732044846849,0.107041,93422.0,93407.0,0.010705]
[1732044847115,0.107032,93430.0,93416.0,0.010704]
[1732044847297,0.10906255,93442.0,93416.0,0.010704]
[1732044847298,0.107034,93429.0,93416.0,0.010704]
[1732044847521,0.107034,93428.0,93416.0,0.010704]
[1732044847951,0.1,93439.0,93416.0,0.10906255]
[1732044848239,0.1,93439.0,93428.0,0.010703]
[1732044848488,0.1,93439.0,93416.0,0.10906255]
[1732044848489,0.14278108,93439.0,93416.0,0.10906255]
[1732044848696,0.04278108,93439.0,93423.0,0.010703]
[1732044848926,0.107028,93434.0,93417.0,0.11976655]
[1732044849147,0.40500746,93440.0,93409.0,0.010705]
[1732044849365,0.107034,93428.0,93408.0,0.010705]
[1732044849598,0.107034,93428.0,93404.0,0.0902]
[1732044849599,0.107042,93421.0,93404.0,0.0802]
[1732044849848,0.1,93429.0,93405.0,0.10906255]
[1732044850053,0.107041,93422.0,93410.0,0.010705]
[1732044850278,0.107038,93425.0,93413.0,0.010705]
[1732044850481,0.214066,93429.0,93415.0,0.010704]
[1732044850716,0.10704,93423.0,93412.0,0.02141]
[1732044850927,0.214064,93430.0,93413.0,0.010705]
[1732044850928,0.1,93429.0,93413.0,0.010705]
[1732044851173,0.107037,93425.0,93415.0,0.010704]
[1732044851378,0.214073,93426.0,93411.0,0.010705]
[1732044851581,0.107039,93424.0,93414.0,0.010704]
[1732044851803,0.107039,93424.0,93415.0,0.010704]
[1732044852057,0.107039,93424.0,93405.0,0.10906255]
[1732044852058,0.107039,93424.0,93409.0,0.010705]
[1732044852263,0.04363455,93430.0,93415.0,0.010704]
[1732044852476,0.214066,93429.0,93416.0,0.010704]
[1732044852891,0.14445489,93431.0,93415.0,0.010704]
[1732044853097,0.14445489,93431.0,93416.0,0.010704]
[1732044853339,0.14445489,93431.0,93405.0,0.10906255]
[1732044853340,0.107041,93422.0,93414.0,0.010704]
[1732044853549,0.214068,93428.0,93414.0,0.010704]
[1732044853550,0.107039,93424.0,93416.0,0.010704]
[1732044853767,0.214064,93430.0,93420.0,0.010704]
[1732044853969,0.107036,93427.0,93420.0,0.021408]
[1732044854211,0.1,93429.0,93405.0,0.10906255]
[1732044854442,0.14445489,93431.0,93427.0,0.010703]
[1732044854673,0.14445489,93431.0,93405.0,0.10906255]
[1732044855125,0.14445489,93431.0,93404.0,0.0802]
[1732044855126,0.10906255,93430.0,93404.0,0.0802]
[1732044855377,0.10906255,93430.0,93394.0,0.04500331]
[1732044855378,0.214068,93428.0,93394.0,0.04500331]
[1732044855604,0.1493,93425.0,93398.0,0.010706]
[1732044855815,0.1,93423.0,93420.0,0.0008551]
[1732044856061,0.1,93421.0,93420.0,0.0008551]
[1732044856267,0.20906255,93421.0,93404.0,0.010706]
[1732044856524,0.20906255,93421.0,93393.0,0.0763]
[1732044856525,0.10906255,93420.0,93393.0,0.0763]
[1732044856742,0.40500746,93419.0,93393.0,0.0763]
[1732044857223,0.1,93417.0,93383.0,0.0763]
[1732044857449,0.1,93415.0,93385.0,0.010708]
[1732044857696,0.1,93415.0,93404.0,0.010706]
[1732044857697,0.1,93408.0,93404.0,0.010706]
[1732044857922,0.1,93408.0,93386.0,0.010708]
[1732044858165,0.1,93408.0,93385.0,0.11977055]
[1732044858166,0.1,93408.0,93401.0,0.010706]
[1732044858380,0.1,93408.0,93404.0,0.010706]
[1732044859240,0.214112,93409.0,93387.0,0.10906255]
[1732044859467,0.1,93408.0,93399.0,0.010706]
[1732044859694,0.1,93407.0,93402.0,0.021412]
[1732044859911,0.1,93407.0,93397.0,0.010706]
[1732044860114,0.10706,93406.0,93400.0,0.010706]
[1732044860341,0.1,93407.0,93400.0,0.010706]
[1732044860342,0.1,93407.0,93403.0,0.010706]
[1732044861033,0.04302395,93409.0,93399.0,0.010706]
[1732044861276,0.04302395,93409.0,93395.0,0.010707]
[1732044861277,0.44803141,93409.0,93395.0,0.010707]
[1732044861558,0.1,93406.0,93400.0,0.010706]
[1732044861773,0.012,93406.0,93405.0,0.010706]
[1732044862190,0.40500746,93409.0,93406.0,0.010705]
[1732044862399,0.107059,93407.0,93402.0,0.021412]
[1732044862618,0.214114,93408.0,93401.0,0.010706]
[1732044862833,0.10906255,93407.0,93375.0,0.010709]
[1732044863044,0.10906255,93407.0,93385.0,0.010708]
[1732044863509,0.107076,93392.0,93387.0,0.010708]
[1732044863715,0.40500746,93405.0,93385.0,0.010708]
[1732044863922,0.10906255,93404.0,93385.0,0.010708]
[1732044864174,0.107077,93391.0,93387.0,0.010708]
[1732044864401,0.10906255,93404.0,93387.0,0.010708]
[1732044864626,0.10906255,93404.0,93371.0,0.081156]
[1732044864854,0.04362703,93410.0,93399.0,0.010706]
[1732044865067,0.04362703,93410.0,93378.0,0.10906255]
[1732044865068,0.15068203,93410.0,93404.0,0.010706]
[1732044865292,0.04362703,93410.0,93404.0,0.010706]
[1732044866594,0.04362703,93410.0,93409.0,0.010705]
[1732044866861,0.10704,93423.0,93409.0,0.010705]
[1732044867076,0.1,93421.0,93388.0,0.0775]
[1732044867305,0.51407001,93420.0,93406.0,0.010705]
[1732044867540,0.51407001,93420.0,93381.0,0.01]
[1732044867541,0.50500746,93419.0,93378.0,0.1295]
[1732044867750,0.107067,93399.0,93395.0,0.010707]
[1732044868017,0.20706,93405.0,93404.0,0.0008556]
[1732044869133,0.1,93405.0,93404.0,0.0008556]
[1732044869776,0.20706,93405.0,93404.0,0.0008556]
[1732044869997,0.1,93405.0,93404.0,0.0008556]
[1732044870222,0.20706,93405.0,93404.0,0.0008556]
[1732044871480,0.1,93409.0,93404.0,0.0008556]
[1732044871691,0.40500746,93410.0,93409.0,0.010705]
[1732044871913,0.44902864,93410.0,93409.0,0.00923419]
[1732044872857,0.04402118,93410.0,93409.0,0.00923419]
[1732044873308,0.0017112,93420.0,93404.0,0.0008556]
[1732044873538,0.0017112,93420.0,93417.0,0.010704]
[1732044873771,0.0017112,93420.0,93406.0,0.010705]
[1732044874006,0.04441683,93420.0,93419.0,0.010704]
[1732044874235,0.0017112,93420.0,93419.0,0.010704]
[1732044874474,0.0017112,93420.0,93404.0,0.0008556]
[1732044874699,0.0017112,93420.0,93419.0,0.010704]
[1732044875370,0.0017112,93420.0,93417.0,0.010704]
[1732044875592,0.0017112,93420.0,93419.0,0.010704]
[1732044876426,0.0017112,93420.0,93389.0,0.1]
[1732044876676,0.0017112,93420.0,93391.0,0.0798]
[1732044876907,0.107048,93416.0,93411.0,0.010705]
[1732044877127,0.107048,93416.0,93391.0,0.0798]
[1732044877128,0.214073,93426.0,93415.0,0.010704]
[1732044877356,0.214073,93426.0,93391.0,0.0818]
[1732044877357,0.1,93429.0,93424.0,0.010703]
[1732044877566,0.1,93429.0,93405.0,0.10906255]
[1732044877785,0.1,93429.0,93426.0,0.010703]
[1732044878253,0.04239064,93430.0,93429.0,0.010703]
[1732044878694,0.207013,93447.0,93442.0,0.010701]
[1732044878913,0.207013,93447.0,93419.0,0.010704]
[1732044878914,0.61901446,93455.0,93419.0,0.11976655]
[1732044879140,0.61901446,93455.0,93418.0,0.0777]
[1732044879141,0.04283334,93447.0,93446.0,0.010701]
[1732044879373,0.107,93458.0,93453.0,0.0107]
[1732044879647,0.107,93458.0,93454.0,0.0107]
[1732044879872,0.107,93458.0,93451.0,0.0107]
[1732044879873,0.107,93458.0,93452.0,0.0107]
[1732044880106,0.107,93458.0,93431.0,0.010702]
[1732044880107,0.213995,93460.0,93445.0,0.010701]
[1732044880346,0.213995,93460.0,93383.0,0.002]
[1732044880347,0.19264615,93448.0,93408.0,0.0779]
[1732044880578,0.19264615,93448.0,93414.0,0.02141]
[1732044880579,0.0825,93442.0,93414.0,0.02141]
[1732044880809,0.0017114,93429.0,93417.0,0.010704]
[1732044881043,0.107039,93424.0,93418.0,0.010704]
[1732044881286,0.214068,93428.0,93414.0,0.010705]
[1732044881287,0.107041,93422.0,93414.0,0.010705]
[1732044881522,0.0017114,93429.0,93415.0,0.010704]
[1732044881523,0.107038,93424.0,93415.0,0.010704]
[1732044881746,0.10704,93423.0,93415.0,0.010704]
[1732044881978,0.214075,93425.0,93413.0,0.010705]
[1732044882231,0.2157784,93429.0,93404.0,0.0008556]
[1732044882232,0.21407,93427.0,93404.0,0.0008556]
[1732044882480,0.107053,93411.0,93404.0,0.0008556]
[1732044882706,0.107053,93411.0,93405.0,0.010706]
[1732044882927,0.107052,93413.0,93404.0,0.0008556]
[1732044883151,0.107052,93413.0,93406.0,0.010705]
[1732044883375,0.214095,93417.0,93406.0,0.010705]
[1732044883800,0.09509033,93424.0,93404.0,0.0008556]
[1732044884009,0.10906255,93426.0,93404.0,0.0008556]
[1732044884010,0.09509033,93419.0,93404.0,0.0008556]
[1732044884247,0.19018067,93426.0,93388.0,0.010707]
[1732044884248,0.09509033,93411.0,93388.0,0.010707]
[1732044884498,0.01,93420.0,93386.0,0.010708]
[1732044884499,0.09509033,93403.0,93386.0,0.010708]
[1732044884701,0.214121,93405.0,93386.0,0.010708]
[1732044884702,0.09509033,93402.0,93388.0,0.010708]
[1732044884930,0.214121,93405.0,93379.0,0.010709]
[1732044884931,0.107073,93395.0,93383.0,0.010708]
[1732044885154,0.107073,93395.0,93389.0,0.010707]
[1732044885383,0.214132,93400.0,93390.0,0.010707]
[1732044885593,0.107067,93400.0,93394.0,0.010707]
[1732044885816,0.107068,93399.0,93393.0,0.010707]
[1732044888117,0.107081,93387.0,93381.0,0.010708]
[1732044888321,0.1426355,93391.0,93377.0,0.0008551]
[1732044888322,0.107083,93385.0,93380.0,0.010708]
[1732044888561,0.107083,93385.0,93379.0,0.010708]
[1732044888791,0.09540172,93385.0,93378.0,0.010709]
[1732044889015,0.25754812,93391.0,93378.0,0.010709]
[1732044889229,0.107085,93384.0,93378.0,0.010709]
[1732044889438,0.20251587,93384.0,93379.0,0.010708]
[1732044889676,0.09543087,93386.0,93378.0,0.010709]
[1732044889896,0.09543087,93384.0,93381.0,0.010708]
[1732044890116,0.09543087,93384.0,93377.0,0.0008551]
[1732044890117,0.09543087,93384.0,93380.0,0.010708]
[1732044890342,0.20251887,93381.0,93377.0,0.0008551]
[1732044890595,0.09543212,93380.0,93377.0,0.0008551]
[1732044890811,0.09543212,93381.0,93377.0,0.0008551]
[1732044891019,0.09543212,93383.0,93379.0,0.010708]
[1732044891454,0.09543212,93382.0,93379.0,0.010708]
[1732044891677,0.20251712,93383.0,93379.0,0.010708]
[1732044891896,0.107085,93384.0,93378.0,0.010709]
[1732044892115,0.214165,93386.0,93377.0,0.0115641]
[1732044892116,0.214165,93386.0,93379.0,0.010709]
[1732044892327,0.107085,93383.0,93378.0,0.010709]
[1732044892533,0.14314631,93388.0,93379.0,0.10906255]
[1732044892745,0.15047012,93391.0,93380.0,0.010708]
[1732044892965,0.18653943,93391.0,93385.0,0.010708]
[1732044893190,0.107076,93392.0,93385.0,0.010708]
[1732044893191,0.107076,93392.0,93386.0,0.010708]
[1732044893400,0.107075,93393.0,93387.0,0.010708]
[1732044893616,0.214151,93392.0,93382.0,0.010708]
[1732044893823,0.04424145,93393.0,93382.0,0.010708]
[1732044894250,0.107082,93386.0,93380.0,0.010708]
[1732044894506,0.107082,93386.0,93381.0,0.010708]
[1732044894729,0.107081,93387.0,93382.0,0.010708]
[1732044895603,0.18602253,93394.0,93379.0,0.0008557]
[1732044895604,0.14310963,93390.0,93379.0,0.0008557]
[1732044895816,0.14310963,93390.0,93387.0,0.010708]
[1732044896463,0.107076,93392.0,93387.0,0.010708]
[1732044897363,0.1499859,93394.0,93389.0,0.010707]
[1732044897620,0.0429129,93394.0,93390.0,0.010707]
[1732044897831,0.14310963,93397.0,93379.0,0.0008557]
[1732044898078,0.14310963,93402.0,93398.0,0.010706]
[1732044898311,0.61912746,93406.0,93387.0,0.010708]
[1732044898312,0.14310963,93404.0,93387.0,0.010708]
[1732044898532,0.40500746,93406.0,93399.0,0.010706]
[1732044898533,0.14310963,93403.0,93399.0,0.010706]
[1732044898996,0.44912008,93406.0,93381.0,0.076]
[1732044899202,0.214126,93403.0,93382.0,0.010708]
[1732044899426,0.14310963,93401.0,93381.0,0.076]
[1732044899640,0.14310963,93400.0,93381.0,0.076]
[1732044899847,0.107076,93392.0,93386.0,0.010708]
[1732044900048,0.10708,93389.0,93382.0,0.010708]
[1732044900252,0.14310963,93396.0,93383.0,0.010708]
[1732044900466,0.214144,93395.0,93383.0,0.010708]
[1732044900679,0.107079,93389.0,93383.0,0.010708]
[1732044902022,0.09540055,93390.0,93383.0,0.010708]
[1732044902259,0.09540055,93390.0,93379.0,0.0008557]
[1732044902476,0.107083,93386.0,93380.0,0.010708]
[1732044902742,0.107083,93386.0,93379.0,0.0115637]
[1732044902947,0.107083,93386.0,93380.0,0.010708]
[1732044903164,0.09540055,93385.0,93380.0,0.010708]
[1732044903400,0.107083,93385.0,93380.0,0.010708]
[1732044904270,0.09540055,93386.0,93363.0,0.0017102]
[1732044904477,0.107093,93377.0,93372.0,0.010709]
[1732044904695,0.107093,93377.0,93363.0,0.0017102]
[1732044904696,0.09540055,93379.0,93363.0,0.0017102]
[1732044904927,0.45268005,93387.0,93377.0,0.010709]
[1732044904928,0.09540055,93382.0,93377.0,0.010709]
[1732044905148,0.20248755,93382.0,93377.0,0.010709]
[1732044905373,0.107087,93382.0,93379.0,0.0008557]
[1732044905595,0.107086,93383.0,93379.0,0.0008557]
[1732044905820,0.107087,93382.0,93379.0,0.0008557]
[1732044906047,0.20248755,93382.0,93379.0,0.0008557]
[1732044906519,0.107087,93382.0,93379.0,0.0008557]
[1732044906742,0.22157155,93384.0,93379.0,0.0008557]
[1732044906979,0.107087,93382.0,93379.0,0.0008557]
[1732044907182,0.00740055,93384.0,93379.0,0.0008557]
[1732044907390,0.214164,93387.0,93379.0,0.0008557]
[1732044907633,0.23018738,93380.0,93379.0,0.0008557]
[1732044908134,0.23018738,93380.0,93363.0,0.0017102]
[1732044908135,0.107104,93367.0,93363.0,0.0017102]
[1732044908784,0.107104,93368.0,93363.0,0.0017102]
[1732044909030,0.107104,93367.0,93363.0,0.0017102]
[1732044909655,0.04249545,93369.0,93363.0,0.0017102]
[1732044910122,0.107101,93370.0,93363.0,0.0017102]
[1732044910123,0.04399794,93372.0,93371.0,0.010709]
[1732044910625,0.40500746,93401.0,93391.0,0.010707]
[1732044910847,0.40500746,93401.0,93392.0,0.010707]
[1732044910848,0.107067,93399.0,93392.0,0.010707]
[1732044911067,0.107067,93399.0,93390.0,0.010707]
[1732044911068,0.35723387,93402.0,93393.0,0.010707]
[1732044911305,0.14310587,93403.0,93397.0,0.010706]
[1732044911534,0.0017114,93404.0,93403.0,0.010706]
[1732044911769,0.04484307,93404.0,93403.0,0.010706]
[1732044911984,0.0017114,93404.0,93403.0,0.010706]
[1732044912686,0.0017114,93404.0,93403.0,0.11976855]
[1732044912972,0.0017114,93404.0,93403.0,0.12176855]
[1732044913195,0.0017114,93404.0,93403.0,0.11976855]
[1732044913611,0.0017114,93404.0,93403.0,0.12176855]
[1732044913820,0.0017114,93404.0,93403.0,0.23976855]
[1732044914484,0.0017114,93404.0,93403.0,0.24176855]
[1732044915616,0.0017114,93404.0,93403.0,0.23176855]
[1732044915824,0.0017114,93404.0,93403.0,0.22976855]
[1732044916697,0.0017114,93404.0,93403.0,0.11976855]
[1732044917119,0.0017114,93404.0,93403.0,0.010706]
[1732044918056,0.0017114,93404.0,93391.0,0.0794]
[1732044918057,0.0017114,93404.0,93379.0,0.083]
[1732044918301,0.0017114,93404.0,93403.0,0.010706]
[1732044918727,0.0017114,93404.0,93401.0,0.010706]
[1732044918934,0.0017114,93404.0,93388.0,0.010707]
[1732044918935,0.0017114,93404.0,93400.0,0.010706]
[1732044919370,0.86952445,93383.0,93380.0,0.01]
[1732044919827,0.86952445,93383.0,93382.0,0.0115639]
[1732044920258,0.91378118,93383.0,93382.0,0.0115639]
[1732044921359,0.91378118,93383.0,93382.0,0.12062645]
[1732044921741,0.82578118,93383.0,93382.0,0.0008559]
[1732044922204,0.93286618,93383.0,93382.0,0.0008559]
[1732044922421,0.107095,93375.0,93366.0,0.0017102]
[1732044922647,0.107098,93372.0,93366.0,0.0017102]
[1732044922854,0.107099,93371.0,93366.0,0.0017102]
[1732044923050,0.82578118,93383.0,93366.0,0.0124202]
[1732044923051,0.107094,93376.0,93366.0,0.0124202]
[1732044923274,0.32323955,93381.0,93366.0,0.0124202]
[1732044923275,0.32323955,93381.0,93366.0,0.0017102]
[1732044923452,0.107094,93376.0,93366.0,0.0017102]
[1732044923689,0.107094,93376.0,93367.0,0.01071]
[1732044924084,0.32323955,93381.0,93367.0,0.01071]
[1732044924085,0.32323955,93381.0,93369.0,0.01071]
[1732044924292,0.32323955,93381.0,93367.0,0.01071]
[1732044924293,0.214181,93379.0,93367.0,0.01071]
[1732044924493,0.107094,93376.0,93367.0,0.01071]
[1732044924698,0.32323955,93381.0,93369.0,0.01071]
[1732044924699,0.10709,93380.0,93369.0,0.01071]
[1732044924874,0.82578118,93383.0,93366.0,0.0017102]
[1732044924875,0.82578118,93383.0,93376.0,0.010709]
[1732044925089,0.82578118,93383.0,93368.0,0.01071]
[1732044925336,0.107089,93381.0,93371.0,0.010709]
[1732044925556,0.107089,93381.0,93366.0,0.0017102]
[1732044925557,0.21393001,93382.0,93366.0,0.0017102]
[1732044925825,0.214178,93380.0,93367.0,0.01071]
[1732044926033,0.107092,93378.0,93368.0,0.01071]
[1732044926355,0.82578118,93383.0,93369.0,0.01071]
[1732044926572,0.82578118,93383.0,93366.0,0.0017102]
[1732044926573,0.9211305,93383.0,93370.0,0.01071]
[1732044926806,0.9211305,93383.0,93366.0,0.0017102]
[1732044926807,0.10906255,93382.0,93366.0,0.0017102]
[1732044927260,0.82578118,93383.0,93366.0,0.0017102]
[1732044927483,0.82578118,93383.0,93371.0,0.010709]
[1732044927690,0.82578118,93383.0,93366.0,0.0017102]
[1732044927691,0.82578118,93383.0,93378.0,0.010709]
[1732044927909,0.82578118,93383.0,93366.0,0.0017102]
[1732044927910,0.214174,93382.0,93366.0,0.0017102]
[1732044928133,0.107087,93382.0,93367.0,0.02142]
[1732044928341,0.82578118,93383.0,93373.0,0.010709]
[1732044928550,0.82578118,93383.0,93374.0,0.010709]
[1732044929214,0.82578118,93383.0,93379.0,0.010709]
[1732044929440,0.82578118,93383.0,93382.0,0.010708]
[1732044930099,0.82578118,93383.0,93382.0,0.11977055]
[1732044931212,0.82578118,93383.0,93382.0,0.010708]
[1732044932334,0.82578118,93383.0,93382.0,0.11977055]
[1732044932812,0.82578118,93383.0,93382.0,0.12306151]
[1732044934285,0.82578118,93383.0,93328.0,0.18954146]
[1732044934286,0.01,93364.0,93328.0,0.18954146]
[1732044934536,0.01,93364.0,93310.0,0.0008557]
[1732044934537,0.01,93329.0,93310.0,0.0008557]
[1732044934751,0.1,93339.0,93310.0,0.0008557]
[1732044934752,0.01,93334.0,93310.0,0.0008557]
[1732044934960,0.09531518,93336.0,93311.0,0.011116]
[1732044935209,0.09531518,93343.0,93312.0,0.10906255]
[1732044935445,0.01,93340.0,93312.0,0.11021416]
[1732044935650,0.01,93340.0,93312.0,0.10906255]
[1732044936108,0.04383632,93344.0,93334.0,0.021428]
[1732044936312,0.04383632,93344.0,93334.0,0.010714]
[1732044936540,0.09531518,93349.0,93312.0,0.10906255]
[1732044936768,0.05570473,93352.0,93343.0,0.010713]
[1732044936975,0.01,93353.0,93345.0,0.010712]
[1732044937219,0.14297278,93359.0,93313.0,0.023]
[1732044937220,0.01,93357.0,93314.0,0.10906255]
[1732044937426,0.04363089,93353.0,93352.0,0.010712]
[1732044937647,0.01,93353.0,93352.0,0.010712]
[1732044937880,0.01,93361.0,93352.0,0.010712]
[1732044938094,0.0433225,93359.0,93356.0,0.010711]
[1732044938310,0.01,93361.0,93352.0,0.010712]
[1732044938549,0.01,93361.0,93354.0,0.010711]
[1732044938955,0.01,93361.0,93348.0,0.010712]
[1732044939184,0.01,93361.0,93332.0,0.010714]
[1732044939185,0.05353968,93361.0,93332.0,0.010714]
[1732044939405,0.01,93360.0,93333.0,0.10906255]
[1732044939624,0.10531518,93361.0,93353.0,0.010711]
[1732044939870,0.1,93360.0,93333.0,0.10906255]
[1732044940072,0.0444692,93362.0,93361.0,0.010711]
[1732044940519,0.01,93376.0,93346.0,0.010712]
[1732044940768,0.117094,93376.0,93366.0,0.01071]
[1732044940957,0.117094,93376.0,93372.0,0.010709]
[1732044940958,0.01,93376.0,93372.0,0.010709]
[1732044941262,0.01,93378.0,93348.0,0.010712]
[1732044941415,0.01,93378.0,93334.0,0.1]
[1732044941416,0.01,93378.0,93373.0,0.010709]
[1732044941620,0.01,93378.0,93349.0,0.10906255]
[1732044941621,0.01,93378.0,93374.0,0.010709]
[1732044941829,0.01,93378.0,93375.0,0.010709]
[1732044942407,0.01,93378.0,93377.0,0.010709]
[1732044942605,0.8256834,93383.0,93382.0,0.010708]
[1732044943232,0.8256834,93383.0,93381.0,0.010708]
[1732044943434,0.8256834,93383.0,93382.0,0.010708]
[1732044945001,0.8256834,93383.0,93376.0,0.010709]
[1732044945202,0.8256834,93383.0,93361.0,0.10906255]
[1732044945203,0.8256834,93383.0,93381.0,0.010708]
[1732044945319,0.8256834,93383.0,93381.0,0.021416]
[1732044945516,0.8256834,93383.0,93381.0,0.010708]
[1732044945731,0.8256834,93383.0,93382.0,0.010708]
[1732044946777,0.01,93335.0,93297.0,0.2238494]
[1732044946967,0.01,93335.0,93260.0,0.0111728]
[1732044946968,0.01,93296.0,93282.0,0.0008558]
[1732044947189,0.11,93317.0,93289.0,0.010719]
[1732044947190,0.001,93292.0,93289.0,0.010719]
[1732044947517,0.01,93307.0,93285.0,0.000856]
[1732044947818,0.001,93294.0,93285.0,0.000856]
[1732044948067,0.107172,93308.0,93285.0,0.000856]
[1732044948068,0.001,93308.0,93285.0,0.000856]
[1732044948237,0.001,93304.0,93285.0,0.000856]
[1732044948440,0.001,93304.0,93301.0,0.010717]
[1732044948766,0.001,93304.0,93285.0,0.000856]
[1732044948996,0.001,93297.0,93296.0,0.010718]
[1732044949220,0.001,93298.0,93297.0,0.010718]
[1732044949436,0.04346583,93308.0,93285.0,0.000856]
[1732044949437,0.04446583,93308.0,93285.0,0.000856]
[1732044949642,0.01,93307.0,93302.0,0.010717]
[1732044949859,0.001,93306.0,93304.0,0.010717]
[1732044950091,0.001,93306.0,93303.0,0.010717]
[1732044950323,0.001,93306.0,93290.0,0.010719]
[1732044950324,0.001,93306.0,93285.0,0.000856]
[1732044950534,0.001,93307.0,93289.0,0.010719]
[1732044950771,0.011,93307.0,93299.0,0.010718]
[1732044950997,0.04346583,93308.0,93299.0,0.010718]
[1732044950998,0.04346583,93308.0,93307.0,0.010717]
[1732044951200,0.01,93319.0,93299.0,0.10906255]
[1732044951425,0.04447269,93317.0,93316.0,0.010716]
[1732044951631,0.001,93314.0,93313.0,0.010716]
[1732044951852,0.001,93314.0,93308.0,0.010717]
[1732044951853,0.04349068,93321.0,93306.0,0.010717]